Workbook

Sheet Sheet1
A1: 恩平市2021年公开招聘教师（第二场）拟聘用名册（第一批）
A2: 序号 | B2: 姓名 | C2: 准考证号 | D2: 性别 | E2: 学历 | F2: 学位 | G2: 用人单位名称 | H2: 职位代码 | I2: 职位名称 | J2: 招录人数 | K2: 综合成绩 | L2: 综合排名 | M2: 体检结果 | N2: 考察结果 | O2: 备注
A3: 1 | B3: 梁绮红 | C3: =VLOOKUP(B3,'[1]考生信息 (2)'!$B$3:$C$800,2,0) -> 801080100425 | D3: =VLOOKUP(B3,[2]新教师!$B$5:$C$50,2,0) -> 女 | E3: =VLOOKUP(B3,[3]数据列表!$B$3:$Z$1000,25,0) -> 本科 | F3: =VLOOKUP(B3,[3]数据列表!$B$3:$AA$4000,26,0) -> 学士 | G3: 恩平市教育局属下事业单位 | H3: =VLOOKUP(B3,'[1]考生信息 (2)'!$B$3:$E$110,4,0) -> 202102 | I3: =VLOOKUP(B3,'[1]考生信息 (2)'!$B$3:$D$700,3,0) -> 高中语文教师 | J3: =VLOOKUP(B3,'[1]考生信息 (2)'!$B$3:$F$400,5,0) -> 3 | K3: =VLOOKUP(B3,'[1]考生信息 (2)'!$B$3:$N$400,13,0) -> 78.6 | L3: =VLOOKUP(B3,'[1]考生信息 (2)'!$B$3:$P$400,15,0) -> 1 | M3: 合格 | N3: 合格
A4: 2 | B4: 潘婉梅 | C4: 801080100530 | D4: 女 | E4: 本科 | F4: / | G4: 恩平市恩城街道办事处第一幼儿园 | H4: 202101 | I4: 幼儿园教师 | J4: 2 | K4: 84.20 | L4: =VLOOKUP(B4,'[1]考生信息 (2)'!$B$3:$P$400,15,0) -> 1 | M4: 合格 | N4: 合格
A5: 3 | B5: 吴芷莹 | C5: 801080100504 | D5: 女 | E5: 本科 | F5: 学士 | G5: 恩平市恩城街道办事处第一幼儿园 | H5: 202101 | I5: 幼儿园教师 | J5: 2 | K5: 83.9 | L5: 2 | M5: 合格 | N5: 合格
A6: 4 | B6: 孔嘉樑 | C6: 801080100829 | D6: 男 | E6: =VLOOKUP(B6,[3]数据列表!$B$3:$Z$1000,25,0) -> 本科 | F6: =VLOOKUP(B6,[3]数据列表!$B$3:$AA$4000,26,0) -> 学士 | G6: 恩平市教育局属下事业单位 | H6: 202106 | I6: 高中历史教师 | J6: 2 | K6: 83.3 | L6: 1 | M6: 合格 | N6: 合格
A7: 5 | B7: 梁茵文 | C7: =VLOOKUP(B7,'[1]考生信息 (2)'!$B$3:$C$800,2,0) -> 801080100225 | D7: =VLOOKUP(B7,[2]新教师!$B$5:$C$50,2,0) -> 女 | E7: =VLOOKUP(B7,[3]数据列表!$B$3:$Z$1000,25,0) -> 本科 | F7: =VLOOKUP(B7,[3]数据列表!$B$3:$AA$4000,26,0) -> 学士 | G7: 恩平市教育局属下事业单位 | H7: =VLOOKUP(B7,'[1]考生信息 (2)'!$B$3:$E$110,4,0) -> 202107 | I7: =VLOOKUP(B7,'[1]考生信息 (2)'!$B$3:$D$700,3,0) -> 高中地理老师 | J7: =VLOOKUP(B7,'[1]考生信息 (2)'!$B$3:$F$400,5,0) -> 2 | K7: =VLOOKUP(B7,'[1]考生信息 (2)'!$B$3:$N$400,13,0) -> 81.7 | L7: =VLOOKUP(B7,'[1]考生信息 (2)'!$B$3:$P$400,15,0) -> 1 | M7: 合格 | N7: 合格
A8: 6 | B8: 邓倩影 | C8: 801080100623 | D8: 女 | E8: 本科 | F8: 学士 | G8: 恩平市教育局属下事业单位 | H8: 202107 | I8: 高中地理老师 | J8: 2 | K8: 79.4 | L8: 2 | M8: 合格 | N8: 合格
A9: 7 | B9: 邹仲正 | C9: =VLOOKUP(B9,'[1]考生信息 (2)'!$B$3:$C$800,2,0) -> 801080100915 | D9: =VLOOKUP(B9,[2]新教师!$B$5:$C$50,2,0) -> 男 | E9: =VLOOKUP(B9,[3]数据列表!$B$3:$Z$1000,25,0) -> 本科 | F9: =VLOOKUP(B9,[3]数据列表!$B$3:$AA$4000,26,0) -> 学士 | G9: 恩平市教育局属下事业单位 | H9: =VLOOKUP(B9,'[1]考生信息 (2)'!$B$3:$E$110,4,0) -> 202108 | I9: =VLOOKUP(B9,'[1]考生信息 (2)'!$B$3:$D$700,3,0) -> 高中物理教师 | J9: =VLOOKUP(B9,'[1]考生信息 (2)'!$B$3:$F$400,5,0) -> 1 | K9: =VLOOKUP(B9,'[1]考生信息 (2)'!$B$3:$N$400,13,0) -> 79.8 | L9: =VLOOKUP(B9,'[1]考生信息 (2)'!$B$3:$P$400,15,0) -> 1 | M9: 合格 | N9: 合格
A10: 8 | B10: 梁晓燕 | C10: =VLOOKUP(B10,'[1]考生信息 (2)'!$B$3:$C$800,2,0) -> 801080100711 | D10: =VLOOKUP(B10,[2]新教师!$B$5:$C$50,2,0) -> 女 | E10: =VLOOKUP(B10,[3]数据列表!$B$3:$Z$1000,25,0) -> 本科 | F10: =VLOOKUP(B10,[3]数据列表!$B$3:$AA$4000,26,0) -> 学士 | G10: 恩平市教育局属下事业单位 | H10: =VLOOKUP(B10,'[1]考生信息 (2)'!$B$3:$E$110,4,0) -> 202109 | I10: =VLOOKUP(B10,'[1]考生信息 (2)'!$B$3:$D$700,3,0) -> 高中生物教师 | J10: =VLOOKUP(B10,'[1]考生信息 (2)'!$B$3:$F$400,5,0) -> 2 | K10: =VLOOKUP(B10,'[1]考生信息 (2)'!$B$3:$N$400,13,0) -> 81.9 | L10: =VLOOKUP(B10,'[1]考生信息 (2)'!$B$3:$P$400,15,0) -> 1 | M10: 合格 | N10: 合格
A11: 9 | B11: 李怡健 | C11: =VLOOKUP(B11,'[1]考生信息 (2)'!$B$3:$C$800,2,0) -> 801080100121 | D11: =VLOOKUP(B11,[2]新教师!$B$5:$C$50,2,0) -> 男 | E11: =VLOOKUP(B11,[3]数据列表!$B$3:$Z$1000,25,0) -> 本科 | F11: =VLOOKUP(B11,[3]数据列表!$B$3:$AA$4000,26,0) -> 学士 | G11: 恩平市教育局属下事业单位 | H11: =VLOOKUP(B11,'[1]考生信息 (2)'!$B$3:$E$110,4,0) -> 202109 | I11: =VLOOKUP(B11,'[1]考生信息 (2)'!$B$3:$D$700,3,0) -> 高中生物教师 | J11: =VLOOKUP(B11,'[1]考生信息 (2)'!$B$3:$F$400,5,0) -> 2 | K11: =VLOOKUP(B11,'[1]考生信息 (2)'!$B$3:$N$400,13,0) -> 81.5 | L11: =VLOOKUP(B11,'[1]考生信息 (2)'!$B$3:$P$400,15,0) -> 2 | M11: 合格 | N11: 合格
A12: 10 | B12: 冼珍珍 | C12: 801080100702 | D12: 女 | E12: =VLOOKUP(B12,[3]数据列表!$B$3:$Z$1000,25,0) -> 本科 | F12: =VLOOKUP(B12,[3]数据列表!$B$3:$AA$4000,26,0) -> 学士 | G12: 恩平市教育局属下事业单位 | H12: 202110 | I12: 高中心理教师 | J12: 1 | K12: 81.3 | L12: 1 | M12: 合格 | N12: 合格
A13: 11 | B13: 司徒秀玲 | C13: =VLOOKUP(B13,'[1]考生信息 (2)'!$B$3:$C$800,2,0) -> 801080100110 | D13: =VLOOKUP(B13,[2]新教师!$B$5:$C$50,2,0) -> 女 | E13: =VLOOKUP(B13,[3]数据列表!$B$3:$Z$1000,25,0) -> 本科 | F13: =VLOOKUP(B13,[3]数据列表!$B$3:$AA$4000,26,0) -> 学士 | G13: 恩平市教育局属下事业单位 | H13: =VLOOKUP(B13,'[1]考生信息 (2)'!$B$3:$E$110,4,0) -> 202111 | I13: =VLOOKUP(B13,'[1]考生信息 (2)'!$B$3:$D$700,3,0) -> 初中英语教师 | J13: =VLOOKUP(B13,'[1]考生信息 (2)'!$B$3:$F$400,5,0) -> 1 | K13: =VLOOKUP(B13,'[1]考生信息 (2)'!$B$3:$N$400,13,0) -> 87.6 | L13: =VLOOKUP(B13,'[1]考生信息 (2)'!$B$3:$P$400,15,0) -> 1 | M13: 合格 | N13: 合格
A14: 12 | B14: 罗瑾 | C14: =VLOOKUP(B14,'[1]考生信息 (2)'!$B$3:$C$800,2,0) -> 801080100728 | D14: =VLOOKUP(B14,[2]新教师!$B$5:$C$50,2,0) -> 男 | E14: =VLOOKUP(B14,[3]数据列表!$B$3:$Z$1000,25,0) -> 本科 | F14: =VLOOKUP(B14,[3]数据列表!$B$3:$AA$4000,26,0) -> 学士 | G14: 恩平市教育局属下事业单位 | H14: =VLOOKUP(B14,'[1]考生信息 (2)'!$B$3:$E$110,4,0) -> 202112 | I14: =VLOOKUP(B14,'[1]考生信息 (2)'!$B$3:$D$700,3,0) -> 初中英语教师 | J14: =VLOOKUP(B14,'[1]考生信息 (2)'!$B$3:$F$400,5,0) -> 1 | K14: =VLOOKUP(B14,'[1]考生信息 (2)'!$B$3:$N$400,13,0) -> 84.7 | L14: =VLOOKUP(B14,'[1]考生信息 (2)'!$B$3:$P$400,15,0) -> 2 | M14: 合格 | N14: 合格 | O14: 递补
A15: 13 | B15: 唐海锋 | C15: =VLOOKUP(B15,'[1]考生信息 (2)'!$B$3:$C$800,2,0) -> 801080100824 | D15: =VLOOKUP(B15,[2]新教师!$B$5:$C$50,2,0) -> 男 | E15: =VLOOKUP(B15,[3]数据列表!$B$3:$Z$1000,25,0) -> 本科 | F15: =VLOOKUP(B15,[3]数据列表!$B$3:$AA$4000,26,0) -> 学士 | G15: 恩平市教育局属下事业单位 | H15: =VLOOKUP(B15,'[1]考生信息 (2)'!$B$3:$E$110,4,0) -> 202113 | I15: =VLOOKUP(B15,'[1]考生信息 (2)'!$B$3:$D$700,3,0) -> 初中体育教师 | J15: =VLOOKUP(B15,'[1]考生信息 (2)'!$B$3:$F$400,5,0) -> 2 | K15: =VLOOKUP(B15,'[1]考生信息 (2)'!$B$3:$N$400,13,0) -> 89.3 | L15: =VLOOKUP(B15,'[1]考生信息 (2)'!$B$3:$P$400,15,0) -> 1 | M15: 合格 | N15: 合格
A16: 14 | B16: 钱金焕 | C16: =VLOOKUP(B16,'[1]考生信息 (2)'!$B$3:$C$800,2,0) -> 801080100329 | D16: =VLOOKUP(B16,[2]新教师!$B$5:$C$50,2,0) -> 女 | E16: =VLOOKUP(B16,[3]数据列表!$B$3:$Z$1000,25,0) -> 本科 | F16: =VLOOKUP(B16,[3]数据列表!$B$3:$AA$4000,26,0) -> 学士 | G16: 恩平市教育局属下事业单位 | H16: =VLOOKUP(B16,'[1]考生信息 (2)'!$B$3:$E$110,4,0) -> 202115 | I16: =VLOOKUP(B16,'[1]考生信息 (2)'!$B$3:$D$700,3,0) -> 初中历史教师 | J16: =VLOOKUP(B16,'[1]考生信息 (2)'!$B$3:$F$400,5,0) -> 2 | K16: =VLOOKUP(B16,'[1]考生信息 (2)'!$B$3:$N$400,13,0) -> 83.1 | L16: =VLOOKUP(B16,'[1]考生信息 (2)'!$B$3:$P$400,15,0) -> 1 | M16: 合格 | N16: 合格
A17: 15 | B17: 廖文兰 | C17: =VLOOKUP(B17,'[1]考生信息 (2)'!$B$3:$C$800,2,0) -> 801080100428 | D17: =VLOOKUP(B17,[2]新教师!$B$5:$C$50,2,0) -> 女 | E17: =VLOOKUP(B17,[3]数据列表!$B$3:$Z$1000,25,0) -> 本科 | F17: =VLOOKUP(B17,[3]数据列表!$B$3:$AA$4000,26,0) -> 学士 | G17: 恩平市教育局属下事业单位 | H17: =VLOOKUP(B17,'[1]考生信息 (2)'!$B$3:$E$110,4,0) -> 202116 | I17: =VLOOKUP(B17,'[1]考生信息 (2)'!$B$3:$D$700,3,0) -> 初中生物教师 | J17: =VLOOKUP(B17,'[1]考生信息 (2)'!$B$3:$F$400,5,0) -> 2 | K17: =VLOOKUP(B17,'[1]考生信息 (2)'!$B$3:$N$400,13,0) -> 81.5 | L17: =VLOOKUP(B17,'[1]考生信息 (2)'!$B$3:$P$400,15,0) -> 2 | M17: 合格 | N17: 合格
A18: 16 | B18: 杨春霞 | C18: =VLOOKUP(B18,'[1]考生信息 (2)'!$B$3:$C$800,2,0) -> 801080100227 | D18: =VLOOKUP(B18,[2]新教师!$B$5:$C$50,2,0) -> 女 | E18: =VLOOKUP(B18,[3]数据列表!$B$3:$Z$1000,25,0) -> 本科 | F18: =VLOOKUP(B18,[3]数据列表!$B$3:$AA$4000,26,0) -> 学士 | G18: 恩平市教育局属下事业单位 | H18: =VLOOKUP(B18,'[1]考生信息 (2)'!$B$3:$E$110,4,0) -> 202117 | I18: =VLOOKUP(B18,'[1]考生信息 (2)'!$B$3:$D$700,3,0) -> 初中政治教师 | J18: =VLOOKUP(B18,'[1]考生信息 (2)'!$B$3:$F$400,5,0) -> 1 | K18: =VLOOKUP(B18,'[1]考生信息 (2)'!$B$3:$N$400,13,0) -> 84.9 | L18: =VLOOKUP(B18,'[1]考生信息 (2)'!$B$3:$P$400,15,0) -> 1 | M18: 合格 | N18: 合格
A19: 17 | B19: 韦利文 | C19: =VLOOKUP(B19,'[1]考生信息 (2)'!$B$3:$C$800,2,0) -> 801080100207 | D19: =VLOOKUP(B19,[2]新教师!$B$5:$C$50,2,0) -> 女 | E19: =VLOOKUP(B19,[3]数据列表!$B$3:$Z$1000,25,0) -> 本科 | F19: =VLOOKUP(B19,[3]数据列表!$B$3:$AA$4000,26,0) -> 学士 | G19: 恩平市教育局属下事业单位 | H19: =VLOOKUP(B19,'[1]考生信息 (2)'!$B$3:$E$110,4,0) -> 202118 | I19: =VLOOKUP(B19,'[1]考生信息 (2)'!$B$3:$D$700,3,0) -> 初中化学教师 | J19: =VLOOKUP(B19,'[1]考生信息 (2)'!$B$3:$F$400,5,0) -> 1 | K19: =VLOOKUP(B19,'[1]考生信息 (2)'!$B$3:$N$400,13,0) -> 86.2 | L19: =VLOOKUP(B19,'[1]考生信息 (2)'!$B$3:$P$400,15,0) -> 1 | M19: 合格 | N19: 合格
A20: 18 | B20: 陈玉萍 | C20: =VLOOKUP(B20,'[1]考生信息 (2)'!$B$3:$C$800,2,0) -> 801080100201 | D20: =VLOOKUP(B20,[2]新教师!$B$5:$C$50,2,0) -> 女 | E20: =VLOOKUP(B20,[3]数据列表!$B$3:$Z$1000,25,0) -> 本科 | F20: =VLOOKUP(B20,[3]数据列表!$B$3:$AA$4000,26,0) -> 学士 | G20: 恩平市教育局属下事业单位 | H20: =VLOOKUP(B20,'[1]考生信息 (2)'!$B$3:$E$110,4,0) -> 202119 | I20: =VLOOKUP(B20,'[1]考生信息 (2)'!$B$3:$D$700,3,0) -> 小学语文教师 | J20: =VLOOKUP(B20,'[1]考生信息 (2)'!$B$3:$F$400,5,0) -> 1 | K20: =VLOOKUP(B20,'[1]考生信息 (2)'!$B$3:$N$400,13,0) -> 82.5 | L20: =VLOOKUP(B20,'[1]考生信息 (2)'!$B$3:$P$400,15,0) -> 1 | M20: 合格 | N20: 合格
A21: 19 | B21: 劳卓盈 | C21: =VLOOKUP(B21,'[1]考生信息 (2)'!$B$3:$C$800,2,0) -> 801080100625 | D21: =VLOOKUP(B21,[2]新教师!$B$5:$C$50,2,0) -> 女 | E21: =VLOOKUP(B21,[3]数据列表!$B$3:$Z$1000,25,0) -> 本科 | F21: =VLOOKUP(B21,[3]数据列表!$B$3:$AA$4000,26,0) -> 学士 | G21: 恩平市教育局属下事业单位 | H21: =VLOOKUP(B21,'[1]考生信息 (2)'!$B$3:$E$110,4,0) -> 202120 | I21: =VLOOKUP(B21,'[1]考生信息 (2)'!$B$3:$D$700,3,0) -> 小学语文教师 | J21: =VLOOKUP(B21,'[1]考生信息 (2)'!$B$3:$F$400,5,0) -> 2 | K21: =VLOOKUP(B21,'[1]考生信息 (2)'!$B$3:$N$400,13,0) -> 80.3 | L21: =VLOOKUP(B21,'[1]考生信息 (2)'!$B$3:$P$400,15,0) -> 2 | M21: 合格 | N21: 合格
A22: 20 | B22: 朱桂秀 | C22: 801080100404 | D22: 女 | E22: 本科 | F22: 学士 | G22: 恩平市教育局属下事业单位 | H22: 202121 | I22: 小学数学教师 | J22: 3 | K22: 78.5 | L22: 1 | M22: 合格 | N22: 合格
A23: 21 | B23: 梁依雯 | C23: =VLOOKUP(B23,'[1]考生信息 (2)'!$B$3:$C$800,2,0) -> 801080100808 | D23: =VLOOKUP(B23,[2]新教师!$B$5:$C$50,2,0) -> 女 | E23: =VLOOKUP(B23,[3]数据列表!$B$3:$Z$1000,25,0) -> 本科 | F23: =VLOOKUP(B23,[3]数据列表!$B$3:$AA$4000,26,0) -> 学士 | G23: 恩平市教育局属下事业单位 | H23: =VLOOKUP(B23,'[1]考生信息 (2)'!$B$3:$E$110,4,0) -> 202122 | I23: =VLOOKUP(B23,'[1]考生信息 (2)'!$B$3:$D$700,3,0) -> 小学数学教师 | J23: =VLOOKUP(B23,'[1]考生信息 (2)'!$B$3:$F$400,5,0) -> 1 | K23: =VLOOKUP(B23,'[1]考生信息 (2)'!$B$3:$N$400,13,0) -> 78.2 | L23: =VLOOKUP(B23,'[1]考生信息 (2)'!$B$3:$P$400,15,0) -> 1 | M23: 合格 | N23: 合格
A24: 22 | B24: 梁晓红 | C24: 801080100108 | D24: 女 | E24: 本科 | F24: 学士 | G24: 恩平市教育局属下事业单位 | H24: 202123 | I24: 小学英语教师 | J24: 2 | K24: 83.2 | L24: 2 | M24: 合格 | N24: 合格
A25: 23 | B25: 吴恒照 | C25: =VLOOKUP(B25,'[1]考生信息 (2)'!$B$3:$C$800,2,0) -> 801080100413 | D25: =VLOOKUP(B25,[2]新教师!$B$5:$C$50,2,0) -> 男 | E25: =VLOOKUP(B25,[3]数据列表!$B$3:$Z$1000,25,0) -> 本科 | F25: =VLOOKUP(B25,[3]数据列表!$B$3:$AA$4000,26,0) -> 学士 | G25: 恩平市教育局属下事业单位 | H25: =VLOOKUP(B25,'[1]考生信息 (2)'!$B$3:$E$110,4,0) -> 202125 | I25: =VLOOKUP(B25,'[1]考生信息 (2)'!$B$3:$D$700,3,0) -> 小学体育教师 | J25: =VLOOKUP(B25,'[1]考生信息 (2)'!$B$3:$F$400,5,0) -> 2 | K25: =VLOOKUP(B25,'[1]考生信息 (2)'!$B$3:$N$400,13,0) -> 83.6 | L25: =VLOOKUP(B25,'[1]考生信息 (2)'!$B$3:$P$400,15,0) -> 2 | M25: 合格 | N25: 合格
A26: 24 | B26: 伍瑞欣 | C26: =VLOOKUP(B26,'[1]考生信息 (2)'!$B$3:$C$800,2,0) -> 801080100116 | D26: =VLOOKUP(B26,[2]新教师!$B$5:$C$50,2,0) -> 男 | E26: =VLOOKUP(B26,[3]数据列表!$B$3:$Z$1000,25,0) -> 本科 | F26: =VLOOKUP(B26,[3]数据列表!$B$3:$AA$4000,26,0) -> 学士 | G26: 恩平市教育局属下事业单位 | H26: =VLOOKUP(B26,'[1]考生信息 (2)'!$B$3:$E$110,4,0) -> 202125 | I26: =VLOOKUP(B26,'[1]考生信息 (2)'!$B$3:$D$700,3,0) -> 小学体育教师 | J26: =VLOOKUP(B26,'[1]考生信息 (2)'!$B$3:$F$400,5,0) -> 2 | K26: =VLOOKUP(B26,'[1]考生信息 (2)'!$B$3:$N$400,13,0) -> 80.0 | L26: =VLOOKUP(B26,'[1]考生信息 (2)'!$B$3:$P$400,15,0) -> 3 | M26: 合格 | N26: 合格 | O26: 递补
A27: 25 | B27: 冯博俊 | C27: =VLOOKUP(B27,'[1]考生信息 (2)'!$B$3:$C$800,2,0) -> 801080100411 | D27: =VLOOKUP(B27,[2]新教师!$B$5:$C$50,2,0) -> 男 | E27: =VLOOKUP(B27,[3]数据列表!$B$3:$Z$1000,25,0) -> 本科 | F27: =VLOOKUP(B27,[3]数据列表!$B$3:$AA$4000,26,0) -> 学士 | G27: 恩平市教育局属下事业单位 | H27: =VLOOKUP(B27,'[1]考生信息 (2)'!$B$3:$E$110,4,0) -> 202127 | I27: =VLOOKUP(B27,'[1]考生信息 (2)'!$B$3:$D$700,3,0) -> 小学音乐教师 | J27: =VLOOKUP(B27,'[1]考生信息 (2)'!$B$3:$F$400,5,0) -> 2 | K27: =VLOOKUP(B27,'[1]考生信息 (2)'!$B$3:$N$400,13,0) -> 80.0 | L27: =VLOOKUP(B27,'[1]考生信息 (2)'!$B$3:$P$400,15,0) -> 2 | M27: 合格 | N27: 合格
A28: 26 | B28: 关渊凡 | C28: =VLOOKUP(B28,'[1]考生信息 (2)'!$B$3:$C$800,2,0) -> 801080100119 | D28: =VLOOKUP(B28,[2]新教师!$B$5:$C$50,2,0) -> 女 | E28: =VLOOKUP(B28,[3]数据列表!$B$3:$Z$1000,25,0) -> 本科 | F28: =VLOOKUP(B28,[3]数据列表!$B$3:$AA$4000,26,0) -> 学士 | G28: 恩平市教育局属下事业单位 | H28: =VLOOKUP(B28,'[1]考生信息 (2)'!$B$3:$E$110,4,0) -> 202127 | I28: =VLOOKUP(B28,'[1]考生信息 (2)'!$B$3:$D$700,3,0) -> 小学音乐教师 | J28: =VLOOKUP(B28,'[1]考生信息 (2)'!$B$3:$F$400,5,0) -> 2 | K28: =VLOOKUP(B28,'[1]考生信息 (2)'!$B$3:$N$400,13,0) -> 82.3 | L28: =VLOOKUP(B28,'[1]考生信息 (2)'!$B$3:$P$400,15,0) -> 1 | M28: 合格 | N28: 合格
A29: 27 | B29: 胡楚筠 | C29: =VLOOKUP(B29,'[1]考生信息 (2)'!$B$3:$C$800,2,0) -> 801080100917 | D29: =VLOOKUP(B29,[2]新教师!$B$5:$C$50,2,0) -> 女 | E29: =VLOOKUP(B29,[3]数据列表!$B$3:$Z$1000,25,0) -> 本科 | F29: =VLOOKUP(B29,[3]数据列表!$B$3:$AA$4000,26,0) -> 学士 | G29: 恩平市教育局属下事业单位 | H29: =VLOOKUP(B29,'[1]考生信息 (2)'!$B$3:$E$110,4,0) -> 202128 | I29: =VLOOKUP(B29,'[1]考生信息 (2)'!$B$3:$D$700,3,0) -> 小学美术教师 | J29: =VLOOKUP(B29,'[1]考生信息 (2)'!$B$3:$F$400,5,0) -> 2 | K29: =VLOOKUP(B29,'[1]考生信息 (2)'!$B$3:$N$400,13,0) -> 85.5 | L29: =VLOOKUP(B29,'[1]考生信息 (2)'!$B$3:$P$400,15,0) -> 2 | M29: 合格 | N29: 合格
A30: 28 | B30: 梁思婷 | C30: =VLOOKUP(B30,'[1]考生信息 (2)'!$B$3:$C$800,2,0) -> 801080100212 | D30: =VLOOKUP(B30,[2]新教师!$B$5:$C$50,2,0) -> 女 | E30: =VLOOKUP(B30,[3]数据列表!$B$3:$Z$1000,25,0) -> 本科 | F30: =VLOOKUP(B30,[3]数据列表!$B$3:$AA$4000,26,0) -> 学士 | G30: 恩平市职业技术教育中心 | H30: =VLOOKUP(B30,'[1]考生信息 (2)'!$B$3:$E$110,4,0) -> 202131 | I30: =VLOOKUP(B30,'[1]考生信息 (2)'!$B$3:$D$700,3,0) -> 职业高中会计教师 | J30: =VLOOKUP(B30,'[1]考生信息 (2)'!$B$3:$F$400,5,0) -> 1 | K30: =VLOOKUP(B30,'[1]考生信息 (2)'!$B$3:$N$400,13,0) -> 80.5 | L30: =VLOOKUP(B30,'[1]考生信息 (2)'!$B$3:$P$400,15,0) -> 1 | M30: 合格 | N30: 合格
